[Event "December 19 Late 2023"]
[Site "https://www.chess.com"]
[Date "2023.12.19"]
[Round "5"]
[White "Soderstrom, Adrian"]
[Black "Gao, Raymond"]
[Result "0-1"]
[Board "121"]
[TimeControl "180+1"]
[WhiteFideId "1745786"]
[BlackFideId "2629429"]
[WhiteElo "2154"]
[BlackElo "1953"]
[WhiteTeam "SWE"]
[BlackTeam "CAN"]
[WhiteClock "0:00:13"]
[BlackClock "0:00:11"]

1. e4 {[%clk 0:03:00]}  e5 {[%clk 0:02:59]} 2. Nf3 {[%clk 0:02:59]}  Nc6 {[%clk 0:02:59]} 3. Bb5 {[%clk 0:02:59]}  a6 {[%clk 0:02:59]} 4. Ba4 {[%clk 0:02:59]}  Nf6 {[%clk 0:02:59]} 5. O-O {[%clk 0:02:59]}  b5 {[%clk 0:02:58]} 6. Bb3 {[%clk 0:03:00]}  Be7 {[%clk 0:02:57]} 7. a4 {[%clk 0:02:54]}  Rb8 {[%clk 0:02:56]} 8. d4 {[%clk 0:02:29]}  d6 {[%clk 0:02:26]} 9. axb5 {[%clk 0:02:25]}  axb5 {[%clk 0:02:26]} 10. d5 {[%clk 0:02:25]}  Nb4 {[%clk 0:02:10]} 11. Nc3 {[%clk 0:01:54]}  O-O {[%clk 0:02:07]} 12. h3 {[%clk 0:01:43]}  Na6 {[%clk 0:02:04]} 13. Be3 {[%clk 0:01:38]}  b4 {[%clk 0:01:39]} 14. Na4 {[%clk 0:01:35]}  Nxe4 {[%clk 0:01:37]} 15. Qd3 {[%clk 0:01:32]}  f5 {[%clk 0:01:17]} 16. Nd2 {[%clk 0:01:28]}  Nxd2 {[%clk 0:01:02]} 17. Bxd2 {[%clk 0:01:29]}  Kh8 {[%clk 0:01:02]} 18. Bc4 {[%clk 0:01:28]}  Nc5 {[%clk 0:01:00]} 19. Nxc5 {[%clk 0:01:27]}  dxc5 {[%clk 0:01:01]} 20. c3 {[%clk 0:01:18]}  e4 {[%clk 0:00:49]} 21. Qe2 {[%clk 0:01:17]}  Bd6 {[%clk 0:00:35]} 22. cxb4 {[%clk 0:01:08]}  cxb4 {[%clk 0:00:35]} 23. Bb3 {[%clk 0:01:01]}  Qe7 {[%clk 0:00:33]} 24. Rfe1 {[%clk 0:00:58]}  Qe5 {[%clk 0:00:29]} 25. g3 {[%clk 0:00:56]}  Qxb2 {[%clk 0:00:25]} 26. Reb1 {[%clk 0:00:51]}  Qe5 {[%clk 0:00:19]} 27. Bc4 {[%clk 0:00:50]}  Bd7 {[%clk 0:00:18]} 28. Bc1 {[%clk 0:00:46]}  Qf6 {[%clk 0:00:17]} 29. Bb2 {[%clk 0:00:45]}  Qg6 {[%clk 0:00:17]} 30. Re1 {[%clk 0:00:40]}  f4 {[%clk 0:00:18]} 31. Qxe4 {[%clk 0:00:40]}  Bf5 {[%clk 0:00:17]} 32. Qg2 {[%clk 0:00:35]}  fxg3 {[%clk 0:00:16]} 33. fxg3 {[%clk 0:00:32]}  Bxg3 {[%clk 0:00:15]} 34. Re3 {[%clk 0:00:32]}  Bf4 {[%clk 0:00:12]} 35. Qxg6 {[%clk 0:00:30]}  Bxe3+ {[%clk 0:00:12]} 36. Kh2 {[%clk 0:00:28]}  Bxg6 {[%clk 0:00:12]} 37. Re1 {[%clk 0:00:27]}  Rf2+ {[%clk 0:00:12]} 38. Kg3 {[%clk 0:00:27]}  Rxb2 {[%clk 0:00:12]} 39. Rxe3 {[%clk 0:00:28]}  Rc2 {[%clk 0:00:12]} 40. Bd3 {[%clk 0:00:24]}  Bxd3 {[%clk 0:00:11]} 41. d6 {[%clk 0:00:25]}  cxd6 {[%clk 0:00:10]} 42. Re7 {[%clk 0:00:22]}  h6 {[%clk 0:00:10]} 43. h4 {[%clk 0:00:21]}  b3 {[%clk 0:00:10]} 44. h5 {[%clk 0:00:21]}  b2 {[%clk 0:00:11]} 45. Re3 {[%clk 0:00:09]}  b1=Q {[%clk 0:00:12]} 46. Kg4 {[%clk 0:00:09]}  Rg2+ {[%clk 0:00:11]} 47. Kf4 {[%clk 0:00:09]}  Qf1+ {[%clk 0:00:11]} 48. Rf3 {[%clk 0:00:10]}  Rf8+ {[%clk 0:00:11]} 49. Ke3 {[%clk 0:00:10]}  Qxf3+ {[%clk 0:00:11]} 50. Kd4 {[%clk 0:00:11]}  Rg4+ {[%clk 0:00:10]} 51. Kc3 {[%clk 0:00:12]}  Ba6+ {[%clk 0:00:10]} 52. Kd2 {[%clk 0:00:13]}  Rg2+ {[%clk 0:00:10]} 53. Ke1 {[%clk 0:00:13]}  Qf1# {[%clk 0:00:11]} 0-1

[Event "December 19 Late 2023"]
[Site "https://www.chess.com"]
[Date "2023.12.19"]
[Round "5"]
[White "Kanter, Eduard"]
[Black "Merriman, John"]
[Result "0-1"]
[Board "122"]
[TimeControl "180+1"]
[WhiteFideId "4103963"]
[BlackFideId "402362"]
[WhiteElo "2243"]
[BlackElo "2207"]
[WhiteTeam "RUS"]
[BlackTeam "ENG"]
[WhiteClock "0:00:06"]
[BlackClock "0:00:06"]

1. d4 {[%clk 0:02:54]}  Nf6 {[%clk 0:02:59]} 2. c4 {[%clk 0:02:54]}  c5 {[%clk 0:02:58]} 3. d5 {[%clk 0:02:54]}  e6 {[%clk 0:02:58]} 4. Nc3 {[%clk 0:02:54]}  exd5 {[%clk 0:02:59]} 5. cxd5 {[%clk 0:02:54]}  d6 {[%clk 0:02:59]} 6. e4 {[%clk 0:02:55]}  g6 {[%clk 0:03:00]} 7. Bd3 {[%clk 0:02:50]}  Bg7 {[%clk 0:02:59]} 8. Nge2 {[%clk 0:02:49]}  O-O {[%clk 0:02:58]} 9. O-O {[%clk 0:02:49]}  Re8 {[%clk 0:02:49]} 10. a4 {[%clk 0:02:29]}  Na6 {[%clk 0:02:29]} 11. Bg5 {[%clk 0:02:25]}  Nb4 {[%clk 0:02:27]} 12. Rc1 {[%clk 0:02:17]}  h6 {[%clk 0:02:12]} 13. Bf4 {[%clk 0:02:13]}  Nxd3 {[%clk 0:02:10]} 14. Qxd3 {[%clk 0:02:14]}  g5 {[%clk 0:02:09]} 15. Bg3 {[%clk 0:02:07]}  Nh5 {[%clk 0:02:06]} 16. Nb5 {[%clk 0:01:55]}  Nxg3 {[%clk 0:02:05]} 17. Nxg3 {[%clk 0:01:56]}  Bxb2 {[%clk 0:01:54]} 18. Rc2 {[%clk 0:01:49]}  Be5 {[%clk 0:01:54]} 19. Na3 {[%clk 0:01:46]}  Bd7 {[%clk 0:01:49]} 20. Nf5 {[%clk 0:01:24]}  Qf6 {[%clk 0:01:08]} 21. Qh3 {[%clk 0:00:53]}  Kh7 {[%clk 0:00:53]} 22. Nc4 {[%clk 0:00:51]}  Bxa4 {[%clk 0:00:47]} 23. Ra2 {[%clk 0:00:49]}  Bd7 {[%clk 0:00:39]} 24. g4 {[%clk 0:00:41]}  Bxf5 {[%clk 0:00:37]} 25. gxf5 {[%clk 0:00:42]}  Bf4 {[%clk 0:00:37]} 26. Qd3 {[%clk 0:00:25]}  b5 {[%clk 0:00:31]} 27. Na5 {[%clk 0:00:24]}  Qe5 {[%clk 0:00:25]} 28. f3 {[%clk 0:00:20]}  c4 {[%clk 0:00:22]} 29. Qb1 {[%clk 0:00:20]}  Qd4+ {[%clk 0:00:18]} 30. Kh1 {[%clk 0:00:20]}  a6 {[%clk 0:00:18]} 31. Nc6 {[%clk 0:00:20]}  Qc5 {[%clk 0:00:15]} 32. Ra5 {[%clk 0:00:20]}  f6 {[%clk 0:00:08]} 33. Qa2 {[%clk 0:00:19]}  Qe3 {[%clk 0:00:07]} 34. Nb4 {[%clk 0:00:09]}  Qb3 {[%clk 0:00:07]} 35. Qxb3 {[%clk 0:00:09]}  cxb3 {[%clk 0:00:08]} 36. Rxa6 {[%clk 0:00:07]}  Rxa6 {[%clk 0:00:07]} 37. Nxa6 {[%clk 0:00:08]}  Rc8 {[%clk 0:00:07]} 38. Rb1 {[%clk 0:00:08]}  Rc1+ {[%clk 0:00:04]} 39. Rxc1 {[%clk 0:00:07]}  Bxc1 {[%clk 0:00:05]} 40. Nb4 {[%clk 0:00:06]}  b2 {[%clk 0:00:06]} 0-1

[Event "December 19 Late 2023"]
[Site "https://www.chess.com"]
[Date "2023.12.19"]
[Round "5"]
[White "Golubenko, Valentina"]
[Black "Krzywda, Andrzej"]
[Result "0-1"]
[Board "124"]
[TimeControl "180+1"]
[WhiteFideId "4501993"]
[BlackFideId "1114565"]
[WhiteElo "2126"]
[BlackElo "2130"]
[WhiteTeam "CRO"]
[BlackTeam "POL"]
[WhiteClock "0:00:04"]
[BlackClock "0:00:14"]

1. d4 {[%clk 0:03:00]}  d5 {[%clk 0:02:58]} 2. c4 {[%clk 0:03:00]}  dxc4 {[%clk 0:02:58]} 3. e3 {[%clk 0:02:58]}  Nf6 {[%clk 0:02:58]} 4. Bxc4 {[%clk 0:02:56]}  e6 {[%clk 0:02:59]} 5. Nf3 {[%clk 0:02:55]}  c5 {[%clk 0:02:59]} 6. O-O {[%clk 0:02:55]}  Nc6 {[%clk 0:02:58]} 7. Nc3 {[%clk 0:02:52]}  a6 {[%clk 0:02:58]} 8. a4 {[%clk 0:02:44]}  cxd4 {[%clk 0:02:57]} 9. exd4 {[%clk 0:02:44]}  Be7 {[%clk 0:02:49]} 10. d5 {[%clk 0:02:30]}  exd5 {[%clk 0:02:49]} 11. Nxd5 {[%clk 0:02:30]}  Nxd5 {[%clk 0:02:49]} 12. Bxd5 {[%clk 0:02:30]}  O-O {[%clk 0:02:49]} 13. Bf4 {[%clk 0:02:22]}  Nb4 {[%clk 0:02:27]} 14. Bb3 {[%clk 0:02:14]}  Qxd1 {[%clk 0:02:23]} 15. Raxd1 {[%clk 0:02:09]}  Bg4 {[%clk 0:02:22]} 16. Rd4 {[%clk 0:01:57]}  Bxf3 {[%clk 0:02:17]} 17. gxf3 {[%clk 0:01:57]}  Rad8 {[%clk 0:02:11]} 18. Re4 {[%clk 0:01:48]}  Rd7 {[%clk 0:01:37]} 19. Rfe1 {[%clk 0:01:30]}  Bc5 {[%clk 0:01:36]} 20. Bc4 {[%clk 0:01:17]}  h6 {[%clk 0:01:24]} 21. Be5 {[%clk 0:00:45]}  Nd3 {[%clk 0:01:17]} 22. Bxd3 {[%clk 0:00:32]}  Rxd3 {[%clk 0:01:18]} 23. Rg4 {[%clk 0:00:31]}  f6 {[%clk 0:01:14]} 24. Bc3 {[%clk 0:00:31]}  Rxf3 {[%clk 0:01:11]} 25. Re2 {[%clk 0:00:29]}  Kf7 {[%clk 0:01:02]} 26. Rc4 {[%clk 0:00:28]}  Bd6 {[%clk 0:00:54]} 27. Rd4 {[%clk 0:00:23]}  Rd8 {[%clk 0:00:46]} 28. Red2 {[%clk 0:00:20]}  Ke7 {[%clk 0:00:41]} 29. Bb4 {[%clk 0:00:18]}  Bxb4 {[%clk 0:00:39]} 30. Re2+ {[%clk 0:00:17]}  Kf7 {[%clk 0:00:35]} 31. Rxd8 {[%clk 0:00:18]}  b6 {[%clk 0:00:26]} 32. Rd7+ {[%clk 0:00:18]}  Kg6 {[%clk 0:00:25]} 33. Rd4 {[%clk 0:00:18]}  Bc5 {[%clk 0:00:24]} 34. Rg4+ {[%clk 0:00:18]}  Kf7 {[%clk 0:00:24]} 35. Kg2 {[%clk 0:00:18]}  Rb3 {[%clk 0:00:24]} 36. Rge4 {[%clk 0:00:17]}  a5 {[%clk 0:00:24]} 37. h3 {[%clk 0:00:16]}  Bd6 {[%clk 0:00:23]} 38. Rd4 {[%clk 0:00:16]}  Be5 {[%clk 0:00:22]} 39. Rd7+ {[%clk 0:00:15]}  Kg6 {[%clk 0:00:22]} 40. Rb7 {[%clk 0:00:15]}  h5 {[%clk 0:00:20]} 41. Rd2 {[%clk 0:00:13]}  Kf5 {[%clk 0:00:19]} 42. Rxg7 {[%clk 0:00:12]}  Bxb2 {[%clk 0:00:17]} 43. Rd6 {[%clk 0:00:12]}  Be5 {[%clk 0:00:16]} 44. Rc6 {[%clk 0:00:12]}  Bd4 {[%clk 0:00:16]} 45. Rd7 {[%clk 0:00:11]}  Rb4 {[%clk 0:00:16]} 46. Rd5+ {[%clk 0:00:11]}  Kg6 {[%clk 0:00:15]} 47. Rdd6 {[%clk 0:00:11]}  Rxa4 {[%clk 0:00:14]} 48. Kf3 {[%clk 0:00:10]}  Rb4 {[%clk 0:00:14]} 49. Ke4 {[%clk 0:00:10]}  Bc5+ {[%clk 0:00:14]} 50. Kd5 {[%clk 0:00:10]}  Bxd6 {[%clk 0:00:15]} 51. Rxd6 {[%clk 0:00:11]}  a4 {[%clk 0:00:14]} 52. Ke6 {[%clk 0:00:10]}  a3 {[%clk 0:00:14]} 53. Ke7 {[%clk 0:00:11]}  a2 {[%clk 0:00:13]} 54. Rxf6+ {[%clk 0:00:11]}  Kg7 {[%clk 0:00:13]} 55. Rf7+ {[%clk 0:00:11]}  Kg6 {[%clk 0:00:14]} 56. Rf6+ {[%clk 0:00:04]}  Kg5 {[%clk 0:00:14]} 0-1

[Event "December 19 Late 2023"]
[Site "https://www.chess.com"]
[Date "2023.12.19"]
[Round "5"]
[White "Gutierrez Olivares, Daniel"]
[Black "BenchGM"]
[Result "1-0"]
[Board "127"]
[TimeControl "180+1"]
[WhiteFideId "2264005"]
[WhiteElo "2317"]
[BlackElo "2258"]
[WhiteTeam "ESP"]
[WhiteClock "0:01:09"]
[BlackClock "0:00:00"]

1. Nf3 {[%clk 0:02:54]}  Nf6 {[%clk 0:02:59]} 2. d3 {[%clk 0:02:55]}  d5 {[%clk 0:02:58]} 3. Nbd2 {[%clk 0:02:56]}  c5 {[%clk 0:02:58]} 4. c4 {[%clk 0:02:56]}  Bg4 {[%clk 0:02:50]} 5. g3 {[%clk 0:02:56]}  dxc4 {[%clk 0:02:44]} 6. Qa4+ {[%clk 0:02:54]}  Nc6 {[%clk 0:02:34]} 7. Qxc4 {[%clk 0:02:53]}  e5 {[%clk 0:02:11]} 8. Bg2 {[%clk 0:02:52]}  Be6 {[%clk 0:02:11]} 9. Qb5 {[%clk 0:02:49]}  Bd5 {[%clk 0:01:58]} 10. e4 {[%clk 0:02:43]}  a6 {[%clk 0:01:39]} 11. Qa4 {[%clk 0:02:17]}  b5 {[%clk 0:01:35]} 12. Qd1 {[%clk 0:02:16]}  Be6 {[%clk 0:01:30]} 13. Nf1 {[%clk 0:02:12]}  Nb4 {[%clk 0:00:47]} 14. Nxe5 {[%clk 0:02:06]}  Bd6 {[%clk 0:00:33]} 15. a3 {[%clk 0:02:03]}  Bxe5 {[%clk 0:00:32]} 16. axb4 {[%clk 0:02:03]}  cxb4 {[%clk 0:00:29]} 17. Ne3 {[%clk 0:02:01]}  O-O {[%clk 0:00:16]} 18. O-O {[%clk 0:02:01]}  a5 {[%clk 0:00:15]} 19. Kh1 {[%clk 0:02:00]}  a4 {[%clk 0:00:15]} 20. f4 {[%clk 0:02:00]}  Bd4 {[%clk 0:00:15]} 21. e5 {[%clk 0:01:53]}  Nd5 {[%clk 0:00:14]} 22. Ng4 {[%clk 0:01:46]}  Bxg4 {[%clk 0:00:10]} 23. Qxg4 {[%clk 0:01:46]}  Rc8 {[%clk 0:00:08]} 24. Bd2 {[%clk 0:01:40]}  Rc2 {[%clk 0:00:07]} 25. Bc1 {[%clk 0:01:32]}  Be3 {[%clk 0:00:07]} 26. e6 {[%clk 0:01:27]}  Bxc1 {[%clk 0:00:06]} 27. Rfxc1 {[%clk 0:01:25]}  Ne3 {[%clk 0:00:04]} 28. exf7+ {[%clk 0:01:12]}  Rxf7 {[%clk 0:00:04]} 29. Qe6 {[%clk 0:01:09]}  Rxg2 {[%clk 0:00:00]} 30. Rc8 {[%clk 0:01:09]} 1-0

[Event "December 19 Late 2023"]
[Site "https://www.chess.com"]
[Date "2023.12.19"]
[Round "5"]
[White "Igel2023"]
[Black "Figorito, Nick"]
[Result "1/2-1/2"]
[Board "129"]
[TimeControl "180+1"]
[BlackFideId "30923689"]
[WhiteElo "2235"]
[BlackElo "2409"]
[BlackTeam "USA"]
[WhiteClock "0:02:44"]
[BlackClock "0:02:40"]

1. e4 {[%clk 0:03:00]}  e6 {[%clk 0:03:00]} 2. d4 {[%clk 0:03:00]}  d5 {[%clk 0:03:01]} 3. Nd2 {[%clk 0:03:00]}  Nf6 {[%clk 0:03:01]} 4. e5 {[%clk 0:03:00]}  Nfd7 {[%clk 0:03:01]} 5. Bd3 {[%clk 0:03:00]}  c5 {[%clk 0:03:02]} 6. c3 {[%clk 0:03:00]}  Nc6 {[%clk 0:03:03]} 7. Ne2 {[%clk 0:03:01]}  cxd4 {[%clk 0:03:04]} 8. cxd4 {[%clk 0:03:00]}  f6 {[%clk 0:03:05]} 9. exf6 {[%clk 0:02:59]}  Nxf6 {[%clk 0:03:05]} 10. O-O {[%clk 0:02:59]}  Bd6 {[%clk 0:03:06]} 11. Nf3 {[%clk 0:03:00]}  Qc7 {[%clk 0:03:05]} 12. Bg5 {[%clk 0:03:00]}  O-O {[%clk 0:03:05]} 13. Qc2 {[%clk 0:03:00]}  Nb4 {[%clk 0:02:52]} 14. Qxc7 {[%clk 0:02:55]}  Bxc7 {[%clk 0:02:53]} 15. Bb1 {[%clk 0:02:50]}  Nc6 {[%clk 0:02:45]} 16. Bd3 {[%clk 0:02:45]}  Nb4 {[%clk 0:02:40]} 17. Bb1 {[%clk 0:02:44]}  Nc6 {[%clk 0:02:40]} 18. Bd3 {[%clk 0:02:44]}  Nb4 {[%clk 0:02:40]} 1/2-1/2

[Event "December 19 Late 2023"]
[Site "https://www.chess.com"]
[Date "2023.12.19"]
[Round "5"]
[White "ajian"]
[Black "Kornyukov, Alexey"]
[Result "1-0"]
[Board "131"]
[TimeControl "180+1"]
[BlackFideId "4150457"]
[WhiteElo "2392"]
[BlackElo "2352"]
[BlackTeam "RUS"]
[WhiteClock "0:00:04"]
[BlackClock "0:00:00"]

1. d4 {[%clk 0:02:55]}  d5 {[%clk 0:02:59]} 2. c4 {[%clk 0:02:55]}  e6 {[%clk 0:02:59]} 3. Nc3 {[%clk 0:02:55]}  c6 {[%clk 0:02:59]} 4. e3 {[%clk 0:02:54]}  Nf6 {[%clk 0:02:58]} 5. Nf3 {[%clk 0:02:54]}  Nbd7 {[%clk 0:02:58]} 6. Qc2 {[%clk 0:02:54]}  Bd6 {[%clk 0:02:55]} 7. b3 {[%clk 0:02:53]}  Qe7 {[%clk 0:02:53]} 8. Bd3 {[%clk 0:02:52]}  O-O {[%clk 0:02:52]} 9. O-O {[%clk 0:02:51]}  dxc4 {[%clk 0:02:51]} 10. bxc4 {[%clk 0:02:51]}  e5 {[%clk 0:02:52]} 11. Bb2 {[%clk 0:02:51]}  h6 {[%clk 0:02:48]} 12. Nd2 {[%clk 0:02:30]}  Re8 {[%clk 0:02:34]} 13. Nde4 {[%clk 0:02:29]}  Nxe4 {[%clk 0:02:32]} 14. Nxe4 {[%clk 0:02:30]}  Bc7 {[%clk 0:02:30]} 15. d5 {[%clk 0:02:27]}  Nb6 {[%clk 0:01:59]} 16. d6 {[%clk 0:02:20]}  Bxd6 {[%clk 0:01:50]} 17. Nxd6 {[%clk 0:02:17]}  Qxd6 {[%clk 0:01:50]} 18. c5 {[%clk 0:02:17]}  Qe7 {[%clk 0:01:44]} 19. cxb6 {[%clk 0:02:17]}  axb6 {[%clk 0:01:45]} 20. a4 {[%clk 0:02:07]}  Qg5 {[%clk 0:01:34]} 21. Kh1 {[%clk 0:01:58]}  Be6 {[%clk 0:01:29]} 22. f4 {[%clk 0:01:50]}  exf4 {[%clk 0:01:28]} 23. exf4 {[%clk 0:01:51]}  Qh4 {[%clk 0:01:14]} 24. f5 {[%clk 0:01:37]}  Bd5 {[%clk 0:01:13]} 25. Qf2 {[%clk 0:01:22]}  Qg5 {[%clk 0:00:48]} 26. Rfe1 {[%clk 0:01:11]}  c5 {[%clk 0:00:34]} 27. Bb5 {[%clk 0:01:07]}  Rxe1+ {[%clk 0:00:31]} 28. Rxe1 {[%clk 0:01:08]}  Rd8 {[%clk 0:00:30]} 29. Re3 {[%clk 0:01:02]}  Bc6 {[%clk 0:00:25]} 30. h3 {[%clk 0:00:36]}  f6 {[%clk 0:00:21]} 31. Bc4+ {[%clk 0:00:28]}  Kh7 {[%clk 0:00:18]} 32. Bf7 {[%clk 0:00:18]}  Rd1+ {[%clk 0:00:15]} 33. Kh2 {[%clk 0:00:17]}  Bxa4 {[%clk 0:00:11]} 34. Bg6+ {[%clk 0:00:14]}  Kh8 {[%clk 0:00:07]} 35. Qe2 {[%clk 0:00:14]}  Rd8 {[%clk 0:00:05]} 36. Bc1 {[%clk 0:00:11]}  Qf4+ {[%clk 0:00:05]} 37. Kh1 {[%clk 0:00:09]}  Qd6 {[%clk 0:00:03]} 38. Re7 {[%clk 0:00:06]}  Bc6 {[%clk 0:00:02]} 39. Kg1 {[%clk 0:00:04]}  Qd4+ {[%clk 0:00:02]} 40. Qf2 {[%clk 0:00:03]}  Qd1+ {[%clk 0:00:01]} 41. Qf1 {[%clk 0:00:03]}  Qd4+ {[%clk 0:00:01]} 42. Kh1 {[%clk 0:00:04]}  Qd6 {[%clk 0:00:00]} 43. Qe1 {[%clk 0:00:04]} 1-0

[Event "December 19 Late 2023"]
[Site "https://www.chess.com"]
[Date "2023.12.19"]
[Round "5"]
[White "Laskakis, Konstantinos"]
[Black "Palmer, Reegan"]
[Result "0-1"]
[Board "133"]
[TimeControl "180+1"]
[WhiteFideId "42134374"]
[BlackFideId "14322145"]
[WhiteElo "2386"]
[BlackElo "1814"]
[WhiteTeam "GRE"]
[BlackTeam "RSA"]
[WhiteClock "0:00:14"]
[BlackClock "0:00:19"]

1. d4 {[%clk 0:03:00]}  Nf6 {[%clk 0:02:53]} 2. c4 {[%clk 0:03:00]}  g6 {[%clk 0:02:45]} 3. Nc3 {[%clk 0:03:00]}  c5 {[%clk 0:02:46]} 4. d5 {[%clk 0:02:59]}  d6 {[%clk 0:02:47]} 5. e4 {[%clk 0:02:53]}  Bg7 {[%clk 0:02:47]} 6. h3 {[%clk 0:02:50]}  O-O {[%clk 0:02:46]} 7. Nf3 {[%clk 0:02:50]}  e6 {[%clk 0:02:47]} 8. Be2 {[%clk 0:02:45]}  exd5 {[%clk 0:02:46]} 9. exd5 {[%clk 0:02:45]}  Re8 {[%clk 0:01:57]} 10. O-O {[%clk 0:02:44]}  Ne4 {[%clk 0:01:58]} 11. Nxe4 {[%clk 0:02:39]}  Rxe4 {[%clk 0:01:58]} 12. Bd3 {[%clk 0:02:39]}  Re8 {[%clk 0:01:58]} 13. Bg5 {[%clk 0:02:31]}  Qb6 {[%clk 0:01:56]} 14. Re1 {[%clk 0:02:24]}  Bd7 {[%clk 0:01:52]} 15. Rxe8+ {[%clk 0:02:21]}  Bxe8 {[%clk 0:01:52]} 16. Qe2 {[%clk 0:02:22]}  Nd7 {[%clk 0:01:46]} 17. Rb1 {[%clk 0:02:02]}  Ne5 {[%clk 0:01:45]} 18. Nxe5 {[%clk 0:01:49]}  Bxe5 {[%clk 0:01:46]} 19. b3 {[%clk 0:01:45]}  Bd7 {[%clk 0:01:44]} 20. h4 {[%clk 0:01:37]}  Re8 {[%clk 0:01:43]} 21. Qf3 {[%clk 0:01:37]}  Qa5 {[%clk 0:01:21]} 22. a4 {[%clk 0:01:30]}  Bg7 {[%clk 0:01:07]} 23. h5 {[%clk 0:01:26]}  Re1+ {[%clk 0:01:06]} 24. Rxe1 {[%clk 0:01:04]}  Qxe1+ {[%clk 0:01:06]} 25. Kh2 {[%clk 0:01:04]}  Qe5+ {[%clk 0:00:20]} 26. Bf4 {[%clk 0:00:58]}  Qe7 {[%clk 0:00:21]} 27. g3 {[%clk 0:00:55]}  g5 {[%clk 0:00:19]} 28. Bd2 {[%clk 0:00:49]}  h6 {[%clk 0:00:18]} 29. Qe4 {[%clk 0:00:44]}  Qxe4 {[%clk 0:00:18]} 30. Bxe4 {[%clk 0:00:44]}  f5 {[%clk 0:00:19]} 31. Bd3 {[%clk 0:00:43]}  Bd4 {[%clk 0:00:19]} 32. Kg2 {[%clk 0:00:41]}  Kf7 {[%clk 0:00:20]} 33. f4 {[%clk 0:00:39]}  g4 {[%clk 0:00:17]} 34. Be1 {[%clk 0:00:38]}  Kf6 {[%clk 0:00:17]} 35. Bf2 {[%clk 0:00:38]}  Bxf2 {[%clk 0:00:16]} 36. Kxf2 {[%clk 0:00:38]}  a6 {[%clk 0:00:16]} 37. Ke3 {[%clk 0:00:38]}  Be8 {[%clk 0:00:17]} 38. Kd2 {[%clk 0:00:39]}  Bxh5 {[%clk 0:00:17]} 39. a5 {[%clk 0:00:32]}  Be8 {[%clk 0:00:17]} 40. Kc3 {[%clk 0:00:32]}  h5 {[%clk 0:00:17]} 41. b4 {[%clk 0:00:30]}  Bd7 {[%clk 0:00:13]} 42. bxc5 {[%clk 0:00:29]}  dxc5 {[%clk 0:00:14]} 43. Kd2 {[%clk 0:00:29]}  Ke7 {[%clk 0:00:14]} 44. Ke3 {[%clk 0:00:29]}  Kd6 {[%clk 0:00:14]} 45. Kd2 {[%clk 0:00:29]}  Kc7 {[%clk 0:00:14]} 46. Kc3 {[%clk 0:00:29]}  b6 {[%clk 0:00:14]} 47. axb6+ {[%clk 0:00:27]}  Kxb6 {[%clk 0:00:14]} 48. Kb3 {[%clk 0:00:26]}  a5 {[%clk 0:00:15]} 49. Ka3 {[%clk 0:00:26]}  a4 {[%clk 0:00:14]} 50. Bc2 {[%clk 0:00:26]}  h4 {[%clk 0:00:14]} 51. Bd3 {[%clk 0:00:16]}  hxg3 {[%clk 0:00:08]} 52. Bf1 {[%clk 0:00:17]}  Kc7 {[%clk 0:00:09]} 53. Bg2 {[%clk 0:00:16]}  Kd6 {[%clk 0:00:09]} 54. Kb2 {[%clk 0:00:14]}  Bc8 {[%clk 0:00:09]} 55. Ka3 {[%clk 0:00:14]}  Ba6 {[%clk 0:00:09]} 56. Bf1 {[%clk 0:00:12]}  g2 {[%clk 0:00:09]} 57. Bxg2 {[%clk 0:00:13]}  Bxc4 {[%clk 0:00:10]} 58. Kxa4 {[%clk 0:00:12]}  Bxd5 {[%clk 0:00:11]} 59. Bf1 {[%clk 0:00:12]}  Bf3 {[%clk 0:00:10]} 60. Kb5 {[%clk 0:00:12]}  g3 {[%clk 0:00:10]} 61. Kc4 {[%clk 0:00:11]}  g2 {[%clk 0:00:11]} 62. Bxg2 {[%clk 0:00:11]}  Bxg2 {[%clk 0:00:12]} 63. Kd3 {[%clk 0:00:11]}  Be4+ {[%clk 0:00:12]} 64. Ke3 {[%clk 0:00:12]}  Kd5 {[%clk 0:00:13]} 65. Kd2 {[%clk 0:00:12]}  Kd4 {[%clk 0:00:14]} 66. Kc1 {[%clk 0:00:12]}  c4 {[%clk 0:00:14]} 67. Kb2 {[%clk 0:00:12]}  Ke3 {[%clk 0:00:15]} 68. Ka1 {[%clk 0:00:12]}  Kxf4 {[%clk 0:00:16]} 69. Kb2 {[%clk 0:00:13]}  Ke3 {[%clk 0:00:17]} 70. Kc3 {[%clk 0:00:13]}  f4 {[%clk 0:00:17]} 71. Kb2 {[%clk 0:00:13]}  f3 {[%clk 0:00:18]} 72. Kc3 {[%clk 0:00:13]}  f2 {[%clk 0:00:18]} 73. Kb2 {[%clk 0:00:13]}  f1=Q {[%clk 0:00:18]} 74. Ka2 {[%clk 0:00:14]}  Qb1+ {[%clk 0:00:18]} 75. Ka3 {[%clk 0:00:14]}  Qb3# {[%clk 0:00:19]} 0-1

[Event "December 19 Late 2023"]
[Site "https://www.chess.com"]
[Date "2023.12.19"]
[Round "5"]
[White "Becerra, Juan David"]
[Black "Michalski, Olaf"]
[Result "0-1"]
[Board "135"]
[TimeControl "180+1"]
[WhiteFideId "4404998"]
[BlackFideId "1106740"]
[WhiteElo "2293"]
[BlackElo "2105"]
[WhiteTeam "COL"]
[BlackTeam "POL"]
[WhiteClock "0:00:00"]
[BlackClock "0:00:04"]

1. d4 {[%clk 0:02:55]}  d6 {[%clk 0:02:55]} 2. Nc3 {[%clk 0:02:54]}  Nd7 {[%clk 0:02:53]} 3. Nf3 {[%clk 0:02:54]}  e5 {[%clk 0:02:53]} 4. e4 {[%clk 0:02:52]}  Ngf6 {[%clk 0:02:52]} 5. Bc4 {[%clk 0:02:49]}  Be7 {[%clk 0:02:50]} 6. h3 {[%clk 0:02:49]}  O-O {[%clk 0:02:50]} 7. O-O {[%clk 0:02:49]}  c6 {[%clk 0:02:43]} 8. a4 {[%clk 0:02:48]}  h6 {[%clk 0:02:42]} 9. Qe2 {[%clk 0:02:43]}  Re8 {[%clk 0:02:41]} 10. Rd1 {[%clk 0:02:23]}  Qc7 {[%clk 0:02:39]} 11. dxe5 {[%clk 0:02:15]}  dxe5 {[%clk 0:02:24]} 12. Be3 {[%clk 0:02:07]}  Nc5 {[%clk 0:02:22]} 13. Nd2 {[%clk 0:01:51]}  a5 {[%clk 0:02:10]} 14. Qf3 {[%clk 0:01:50]}  Be6 {[%clk 0:02:05]} 15. Bxc5 {[%clk 0:01:47]}  Bxc5 {[%clk 0:02:05]} 16. Bxe6 {[%clk 0:01:46]}  Rxe6 {[%clk 0:01:52]} 17. Nf1 {[%clk 0:01:44]}  Qb6 {[%clk 0:01:49]} 18. Rab1 {[%clk 0:01:40]}  g6 {[%clk 0:01:29]} 19. Rd3 {[%clk 0:01:17]}  Nh5 {[%clk 0:01:27]} 20. g3 {[%clk 0:01:11]}  Rf6 {[%clk 0:01:26]} 21. Qd1 {[%clk 0:01:02]}  Rxf2 {[%clk 0:01:19]} 22. Kh1 {[%clk 0:00:54]}  Rxf1+ {[%clk 0:01:18]} 23. Qxf1 {[%clk 0:00:53]}  Re8 {[%clk 0:00:56]} 24. Ne2 {[%clk 0:00:50]}  Re6 {[%clk 0:00:54]} 25. Rf3 {[%clk 0:00:43]}  Re7 {[%clk 0:00:35]} 26. b3 {[%clk 0:00:44]}  Qb4 {[%clk 0:00:27]} 27. Re1 {[%clk 0:00:33]}  Qxe4 {[%clk 0:00:22]} 28. g4 {[%clk 0:00:20]}  Ng7 {[%clk 0:00:16]} 29. Nc3 {[%clk 0:00:19]}  Qb4 {[%clk 0:00:14]} 30. Re4 {[%clk 0:00:14]}  Bd4 {[%clk 0:00:14]} 31. Ne2 {[%clk 0:00:12]}  Ne6 {[%clk 0:00:13]} 32. Nxd4 {[%clk 0:00:10]}  exd4 {[%clk 0:00:09]} 33. Qe2 {[%clk 0:00:08]}  Qd6 {[%clk 0:00:08]} 34. Rd3 {[%clk 0:00:05]}  c5 {[%clk 0:00:07]} 35. c3 {[%clk 0:00:05]}  Kg7 {[%clk 0:00:04]} 36. cxd4 {[%clk 0:00:05]}  cxd4 {[%clk 0:00:04]} 37. Qf2 {[%clk 0:00:00]}  Qd5 {[%clk 0:00:04]} 0-1